[Event "Polish Youth Ekstraliga 2022"]
[Site "Lublin"]
[Date "2022.07.03"]
[Round "9.13"]
[White "Ciborowski, Konrad Jr"]
[Black "Janeczko, Jakub"]
[Result "1/2-1/2"]
[ECO "B30"]
[WhiteElo "1927"]
[BlackElo "2087"]
[Annotator "NA RC"]
[PlyCount "109"]
[EventDate "2022.06.24"]
[EventType "team-tourn"]
[EventCountry "POL"]
[SourceTitle "playchess.com"]
[Source "ChessBase"]
[SourceQuality "1"]
[TimeControl "40/5400+30:1800+30"]

1. e4 {[%emt 0:00:05]} c5 {[%emt 0:00:53]} 2. Nf3 {[%emt 0:00:06]} Nc6 {[%emt 0:00:06]} 3. Bb5 {[%emt 0:00:03]} a6 {[%emt 0:06:24]} 4. Bxc6 {[%emt 0:01:29]} dxc6 {[%emt 0:00:03]} 5. h3 {[%emt 0:02:01]} Qc7 {[%emt 0:00:05]} 6. d4 {[%emt 0:00:26]} cxd4 {[%emt 0:02:33]} 7. Qxd4 {[%emt 0:00:11]} Nf6 {[%emt 0:09:01]} 8. O-O {[%emt 0:01:23]} c5 {[%emt 0:05:32]} 9. Qd3 {[%emt 0:00:12]} e5 {[%emt 0:04:36]} 10. b3 {[%emt 0:01:03]} Be6 {[%emt 0:11:15]} 11. c4 {[%emt 0:04:28]} h6 {[%emt 0:08:45]} 12. Nc3 {[%emt 0:03:09]} Nd7 {[%emt 0:01:51]} 13. Bb2 $16 {[%emt 0:01:07]} g5 {[%emt 0:13:42]} 14. Nd5 {[%emt 0:02:16]} Qd6 {[%emt 0:03:18]} 15. Rad1 {[%emt 0:02:35]} Bxd5 {[%emt 0:09:01]} 16. exd5 {[%emt 0:00:08]} Bg7 {[%emt 0:01:34]} 17. Rfe1 {[%emt 0:01:07]} O-O {[%emt 0:00:25]} 18. Qf5 {[%emt 0:00:37]} Rae8 {[%emt 0:02:06]} 19. Nd2 {[%emt 0:01:03]} Rd8 {[%emt 0:03:43]} 20. Ne4 {[%emt 0:00:54]} Qg6 {[%emt 0:00:01]} 21. Qxg6 {[%emt 0:04:46]} fxg6 {[%emt 0:00:05]} 22. a4 {[%emt 0:03:55]} a5 {[%emt 0:01:04]} 23. Nd6 {[%emt 0:04:33]} b6 {[%emt 0:00:07]} 24. Nb5 {[%emt 0:00:02]} Rc8 {[%emt 0:04:23]} 25. Na7 {[%emt 0:04:43]} Rce8 {[%emt 0:00:14]} 26. Nc6 {[%emt 0:02:29]} e4 {[%emt 0:08:26]} 27. Bxg7 {[%emt 0:00:05]} Kxg7 {[%emt 0:00:01]} 28. Re2 {[%emt 0:00:19]} Nf6 {[%emt 0:01:54]} 29. d6 {[%emt 0:03:11]} Rf7 {[%emt 0:01:04]} 30. f3 {[%emt 0:00:34]} Rd7 {[%emt 0:00:45]} 31. fxe4 {[%emt 0:03:09]} Nxe4 {[%emt 0:02:09]} 32. Rde1 {[%emt 0:00:03]} Rxd6 {[%emt 0:00:09]} 33. Na7 {[%emt 0:00:02]} Rd3 {[%emt 0:01:12]} 34. Rxe4 {[%emt 0:01:40]} Rxe4 {[%emt 0:00:01]} 35. Rxe4 {[%emt 0:00:06]} Rxb3 {[%emt 0:00:02]} 36. Nc8 {[%emt 0:01:50]} Rb4 {[%emt 0:00:07]} 37. Kf2 {[%emt 0:00:32]} Kf6 {[%emt 0:01:03]} 38. Re2 {[%emt 0:00:48]} g4 {[%emt 0:00:42]} 39. hxg4 {[%emt 0:01:26]} Kg5 {[%emt 0:00:02]} 40. Re6 {[%emt 0:00:00]} Rxa4 {[%emt 0:00:00]} 41. Nxb6 {[%emt 0:00:35]} Rb4 {[%emt 0:06:58]} 42. Nd7 {[%emt 0:03:01]} a4 {[%emt 0:02:24]} 43. Nxc5 {[%emt 0:04:42]} Rxc4 {[%emt 0:02:53]} 44. Ne4+ {[%emt 0:00:10]} Kxg4 {[%emt 0:04:26]} 45. Rxg6+ {[%emt 0:00:05]} Kf5 {[%emt 0:04:43]} 46. Nd6+ {[%emt 0:00:02]} Kxg6 {[%emt 0:00:05]} 47. Nxc4 {[%emt 0:00:02]} Kf5 {[%emt 0:00:23]} 48. Kg3 {[%emt 0:01:11]} Ke4 {[%emt 0:04:07]} 49. Kg4 {[%emt 0:00:52]} Kd4 {[%emt 0:00:27]} 50. Na3 {[%emt 0:01:35]} Kc3 {[%emt 0:00:21]} 51. Kh5 {[%emt 0:00:03]} Kb3 {[%emt 0:03:17]} 52. Nb5 {[%emt 0:02:10]} Kb4 {[%emt 0:00:29]} 53. Nd4 {[%emt 0:00:04]} Kc3 {[%emt 0:00:48]} 54. Nb5+ {[%emt 0:01:12]} Kb4 {[%emt 0:00:16]} 55. Nd4 {[%emt 0:00:47]} 1/2-1/2

[Event "Polish Youth Ekstraliga 2022"]
[Site "Lublin"]
[Date "2022.07.03"]
[Round "9.14"]
[White "Dalkowski, Rafal"]
[Black "Wydmanski, Szymon"]
[Result "1/2-1/2"]
[ECO "E73"]
[WhiteElo "2028"]
[BlackElo "1815"]
[Annotator "NA RC"]
[PlyCount "87"]
[EventDate "2022.06.24"]
[EventType "team-tourn"]
[EventCountry "POL"]
[SourceTitle "playchess.com"]
[Source "ChessBase"]
[SourceQuality "1"]
[TimeControl "40/5400+30:1800+30"]

1. d4 {[%emt 0:00:01]} Nf6 {[%emt 0:02:34]} 2. c4 {[%emt 0:00:08]} g6 {[%emt 0:00:09]} 3. Nc3 {[%emt 0:00:09]} Bg7 {[%emt 0:00:04]} 4. e4 {[%emt 0:00:26]} d6 {[%emt 0:00:23]} 5. Be2 {[%emt 0:00:30]} O-O {[%emt 0:00:22]} 6. Bg5 {[%emt 0:00:06]} c5 {[%emt 0:00:27]} 7. d5 {[%emt 0:00:05]} h6 {[%emt 0:00:50]} 8. Be3 {[%emt 0:01:04]} e6 {[%emt 0:00:40]} 9. Nf3 {[%emt 0:00:56]} exd5 {[%emt 0:00:21]} 10. cxd5 {[%emt 0:00:51]} Bg4 {[%emt 0:01:37]} 11. Nd2 {[%emt 0:00:31]} Bxe2 {[%emt 0:00:14]} 12. Qxe2 {[%emt 0:00:06]} Re8 {[%emt 0:01:33]} 13. O-O {[%emt 0:00:37]} Nbd7 {[%emt 0:01:04]} 14. h3 {[%emt 0:01:04]} Kh7 {[%emt 0:07:55]} 15. a4 {[%emt 0:03:50]} Rc8 {[%emt 0:12:36]} 16. Qd3 {[%emt 0:10:03]} Ne5 {[%emt 0:02:10]} 17. Qc2 {[%emt 0:00:57]} a6 {[%emt 0:06:17]} 18. f4 {[%emt 0:04:59]} Ned7 {[%emt 0:03:03]} 19. Rae1 {[%emt 0:03:07]} (19. a5 $16) 19... c4 {[%emt 0:03:14]} 20. Nf3 {[%emt 0:05:55]} Nc5 {[%emt 0:02:18]} 21. Bxc5 $11 {[%emt 0:07:21]} Rxc5 {[%emt 0:00:17]} 22. Qf2 {[%emt 0:06:21]} Qc7 {[%emt 0:22:28]} 23. e5 {[%emt 0:05:21]} dxe5 {[%emt 0:01:20]} 24. d6 {[%emt 0:04:22]} Qxd6 {[%emt 0:02:03]} 25. fxe5 {[%emt 0:00:19]} Rcxe5 {[%emt 0:00:19]} 26. Nxe5 {[%emt 0:00:18]} Rxe5 {[%emt 0:00:05]} 27. Rxe5 {[%emt 0:06:19]} Qxe5 {[%emt 0:00:35]} 28. Re1 {[%emt 0:05:56]} Qc7 {[%emt 0:08:48]} 29. Kh1 {[%emt 0:01:13]} Nh5 {[%emt 0:03:09]} 30. a5 {[%emt 0:08:49]} Ng3+ {[%emt 0:02:30]} 31. Kg1 {[%emt 0:00:18]} Nf5 {[%emt 0:02:49]} 32. Rd1 {[%emt 0:00:20]} Be5 {[%emt 0:10:44]} 33. g4 {[%emt 0:03:52]} Nd6 {[%emt 0:03:25]} 34. Rd5 {[%emt 0:02:03]} Qe7 {[%emt 0:00:32]} 35. Rd1 {[%emt 0:04:12]} Qg5 {[%emt 0:00:31]} 36. Qf3 {[%emt 0:06:00]} h5 {[%emt 0:00:30]} 37. Kg2 {[%emt 0:02:20]} Nf5 {[%emt 0:00:28]} 38. Kg1 {[%emt 0:02:25]} hxg4 {[%emt 0:00:25]} 39. hxg4 {[%emt 0:00:06]} Bd4+ {[%emt 0:00:18]} 40. Rxd4 {[%emt 0:00:00]} Nxd4 {[%emt 0:00:00]} 41. Qxf7+ {[%emt 0:04:44]} Kh6 {[%emt 0:04:00]} 42. Qf8+ {[%emt 0:00:16]} Kh7 {[%emt 0:00:06]} 43. Qf7+ {[%emt 0:00:34]} Kh6 {[%emt 0:00:05]} 44. Qf8+ {[%emt 0:00:45]} 1/2-1/2

[Event "Polish Youth Ekstraliga 2022"]
[Site "Lublin"]
[Date "2022.07.03"]
[Round "9.15"]
[White "Wolak, Maciej"]
[Black "Mulawa, Cyprian"]
[Result "0-1"]
[ECO "B90"]
[WhiteElo "1316"]
[BlackElo "2050"]
[Annotator "NA RC"]
[PlyCount "84"]
[EventDate "2022.06.24"]
[EventType "team-tourn"]
[EventCountry "POL"]
[SourceTitle "playchess.com"]
[Source "ChessBase"]
[SourceQuality "1"]
[TimeControl "40/5400+30:1800+30"]

1. e4 {[%emt 0:00:04]} c5 {[%emt 0:01:44]} 2. Nf3 {[%emt 0:00:08]} d6 {[%emt 0:00:24]} 3. d4 {[%emt 0:00:37]} cxd4 {[%emt 0:00:44]} 4. Nxd4 {[%emt 0:00:03]} Nf6 {[%emt 0:00:06]} 5. Nc3 {[%emt 0:00:22]} a6 {[%emt 0:00:13]} 6. f3 {[%emt 0:04:02]} e5 {[%emt 0:00:27]} 7. Nb3 {[%emt 0:00:17]} Be7 {[%emt 0:00:17]} 8. Be3 {[%emt 0:00:08]} Be6 {[%emt 0:00:21]} 9. Nd5 {[%emt 0:06:25]} Bxd5 {[%emt 0:01:22]} 10. exd5 {[%emt 0:00:04]} Nbd7 {[%emt 0:00:05]} 11. c4 {[%emt 0:01:17]} O-O {[%emt 0:01:28]} 12. Bd3 {[%emt 0:01:53]} Rc8 {[%emt 0:05:53]} 13. O-O {[%emt 0:02:38]} Nh5 {[%emt 0:02:32]} 14. Qd2 {[%emt 0:04:26]} f5 {[%emt 0:04:37]} 15. Rac1 $14 {[%emt 0:05:33]} g6 {[%emt 0:01:56]} 16. Kh1 {[%emt 0:10:11]} Re8 {[%emt 0:23:25]} 17. Qc2 {[%emt 0:13:26]} Bg5 {[%emt 0:03:38]} 18. Bxg5 {[%emt 0:02:41]} Qxg5 {[%emt 0:00:45]} 19. Qd2 {[%emt 0:02:39]} Qxd2 {[%emt 0:11:05]} 20. Nxd2 {[%emt 0:00:12]} Nf4 {[%emt 0:00:12]} 21. Bb1 {[%emt 0:01:52]} Nc5 {[%emt 0:12:29]} 22. b3 {[%emt 0:02:17]} b5 {[%emt 0:03:13]} 23. g3 {[%emt 0:11:31]} Ne2 {[%emt 0:00:28]} 24. Rce1 {[%emt 0:00:38]} Nd4 {[%emt 0:02:32]} 25. g4 {[%emt 0:03:02]} f4 {[%emt 0:06:46]} 26. Rc1 {[%emt 0:04:44]} b4 {[%emt 0:03:35]} 27. Ne4 {[%emt 0:03:55]} Nxe4 {[%emt 0:00:11]} 28. Bxe4 {[%emt 0:00:17]} Rc5 {[%emt 0:00:23]} 29. Rf2 {[%emt 0:01:34]} Rec8 {[%emt 0:01:54]} 30. Ra1 {[%emt 0:07:52]} Ra5 {[%emt 0:00:40]} 31. Rb1 {[%emt 0:00:35]} Kf7 {[%emt 0:02:41]} 32. Kg2 {[%emt 0:00:54]} Ra3 {[%emt 0:01:28]} 33. Rd2 {[%emt 0:07:32]} a5 {[%emt 0:03:11]} 34. Rxd4 {[%emt 0:00:20]} Rxa2+ {[%emt 0:00:11]} 35. Kg1 {[%emt 0:01:17]} exd4 {[%emt 0:00:13]} 36. h3 {[%emt 0:00:45]} a4 {[%emt 0:01:24]} 37. bxa4 {[%emt 0:00:07]} Rxc4 {[%emt 0:00:20]} 38. Bd3 {[%emt 0:00:35]} Rc3 {[%emt 0:00:07]} 39. Be4 {[%emt 0:00:01]} Rxa4 {[%emt 0:00:16]} 40. Kf2 {[%emt 0:00:00]} Ra2+ {[%emt 0:00:00]} 41. Kf1 {[%emt 0:00:25]} b3 {[%emt 0:00:39]} 42. Kg1 {[%emt 0:00:12]} b2 {[%emt 0:00:21]} 0-1

[Event "Polish Youth Ekstraliga 2022"]
[Site "Lublin"]
[Date "2022.07.03"]
[Round "9.16"]
[White "Suska, Szymon"]
[Black "Kania, Franciszek"]
[Result "1/2-1/2"]
[ECO "A04"]
[WhiteElo "1604"]
[BlackElo "1523"]
[Annotator "NA RC"]
[PlyCount "80"]
[EventDate "2022.06.24"]
[EventType "team-tourn"]
[EventCountry "POL"]
[SourceTitle "playchess.com"]
[Source "ChessBase"]
[SourceQuality "1"]
[TimeControl "40/5400+30:1800+30"]

1. Nf3 {[%emt 0:00:03]} c5 {[%emt 0:01:39]} 2. b3 {[%emt 0:00:15]} Nc6 {[%emt 0:00:28]} 3. Bb2 {[%emt 0:00:06]} d6 {[%emt 0:00:29]} 4. g3 {[%emt 0:00:09]} e5 {[%emt 0:00:09]} 5. d3 {[%emt 0:00:36]} g6 {[%emt 0:00:41]} 6. Bg2 {[%emt 0:00:06]} Bg7 {[%emt 0:00:07]} 7. O-O {[%emt 0:00:27]} Nge7 {[%emt 0:00:22]} 8. c4 {[%emt 0:00:32]} O-O {[%emt 0:00:44]} 9. Nc3 {[%emt 0:00:21]} h6 {[%emt 0:01:17]} 10. Nd2 {[%emt 0:01:02]} Be6 {[%emt 0:05:13]} 11. e4 {[%emt 0:09:13]} f5 {[%emt 0:06:19]} 12. Nd5 {[%emt 0:04:30]} f4 {[%emt 0:05:10]} 13. Qe2 {[%emt 0:09:09]} Qd7 {[%emt 0:04:26]} 14. f3 {[%emt 0:04:42]} h5 {[%emt 0:01:50]} 15. a3 {[%emt 0:12:36]} g5 {[%emt 0:07:11]} 16. b4 {[%emt 0:04:03]} b6 {[%emt 0:05:56]} 17. b5 {[%emt 0:01:33]} Nd4 {[%emt 0:03:00]} 18. Bxd4 {[%emt 0:00:09]} exd4 {[%emt 0:03:35]} 19. Nxe7+ {[%emt 0:04:33]} Qxe7 {[%emt 0:00:12]} 20. g4 {[%emt 0:01:23]} hxg4 {[%emt 0:08:53]} 21. fxg4 {[%emt 0:00:02]} f3 {[%emt 0:01:41]} 22. Rxf3 {[%emt 0:04:10]} Be5 {[%emt 0:03:52]} 23. Rxf8+ {[%emt 0:02:58]} Rxf8 {[%emt 0:00:21]} 24. Rf1 {[%emt 0:01:22]} Bf4 25. h3 {[%emt 0:02:57]} Kg7 {[%emt 0:05:07]} 26. Rf3 {[%emt 0:05:23]} Qd7 {[%emt 0:21:12]} 27. Nf1 {[%emt 0:03:09]} a6 {[%emt 0:01:58]} 28. a4 {[%emt 0:02:02]} axb5 {[%emt 0:00:18]} 29. axb5 {[%emt 0:00:07]} Ra8 {[%emt 0:02:15]} 30. Ng3 {[%emt 0:03:57]} Be5 {[%emt 0:05:38]} 31. Nh5+ {[%emt 0:01:13]} Kg6 {[%emt 0:00:35]} 32. Rf1 {[%emt 0:06:06]} Qe7 {[%emt 0:01:55]} 33. Qf3 {[%emt 0:01:10]} Qa7 {[%emt 0:01:34]} 34. Qe2 {[%emt 0:02:01]} Qe7 {[%emt 0:01:54]} 35. Qf3 {[%emt 0:01:26]} Ra3 {[%emt 0:01:16]} 36. Rf2 {[%emt 0:01:43]} Ra1+ {[%emt 0:00:32]} 37. Bf1 {[%emt 0:00:30]} Ra8 {[%emt 0:00:16]} 38. Bg2 {[%emt 0:03:11]} Ra1+ {[%emt 0:00:32]} 39. Bf1 {[%emt 0:00:08]} Ra8 {[%emt 0:00:39]} 40. Bg2 {[%emt 0:00:00]} Qa7 {[%emt 0:00:00]} 1/2-1/2

[Event "Polish Youth Ekstraliga 2022"]
[Site "Lublin"]
[Date "2022.07.03"]
[Round "9.17"]
[White "Dylag, Emilia"]
[Black "Rejniak, Zuzanna"]
[Result "1/2-1/2"]
[ECO "E04"]
[WhiteElo "2022"]
[BlackElo "1804"]
[Annotator "NA RC"]
[PlyCount "103"]
[EventDate "2022.06.24"]
[EventType "team-tourn"]
[EventCountry "POL"]
[SourceTitle "playchess.com"]
[Source "ChessBase"]
[SourceQuality "1"]
[TimeControl "40/5400+30:1800+30"]

1. d4 {[%emt 0:00:09]} Nf6 {[%emt 0:00:05]} 2. c4 {[%emt 0:00:22]} e6 {[%emt 0:00:05]} 3. g3 {[%emt 0:00:08]} d5 {[%emt 0:00:09]} 4. Bg2 {[%emt 0:00:32]} dxc4 {[%emt 0:03:46]} 5. Nf3 {[%emt 0:00:23]} c6 {[%emt 0:00:08]} 6. O-O {[%emt 0:02:16]} b5 {[%emt 0:01:15]} 7. Ne5 {[%emt 0:02:15]} Bb7 {[%emt 0:00:23]} 8. a4 {[%emt 0:03:58]} a6 {[%emt 0:00:10]} 9. axb5 {[%emt 0:00:07]} axb5 {[%emt 0:00:04]} 10. Rxa8 {[%emt 0:00:06]} Bxa8 {[%emt 0:00:06]} 11. Nc3 {[%emt 0:06:17]} Be7 {[%emt 0:00:15]} 12. e4 {[%emt 0:03:46]} O-O {[%emt 0:04:25]} 13. Be3 {[%emt 0:05:01]} Nbd7 {[%emt 0:06:21]} 14. f4 {[%emt 0:05:15]} b4 {[%emt 0:09:30]} 15. Na4 {[%emt 0:07:46]} c5 {[%emt 0:09:24]} 16. Nxd7 {[%emt 0:04:02]} (16. Nxc5 $11 Qc8 17. Ncxd7 (17. Nxc4 Nxc5 18. dxc5 Bxc5 $17) 17... Nxd7 18. Nxd7 Qxd7 19. f5) 16... Nxd7 {[%emt 0:03:27]} 17. dxc5 {[%emt 0:06:35]} Bc6 $19 {[%emt 0:00:54]} 18. Nb6 {[%emt 0:18:06]} Nxc5 {[%emt 0:03:19]} 19. Nxc4 {[%emt 0:00:52]} Bxe4 {[%emt 0:04:16]} 20. Bxe4 {[%emt 0:03:32]} Nxe4 {[%emt 0:01:53]} 21. Ne5 {[%emt 0:03:14]} Qa8 {[%emt 0:12:42]} 22. Qb3 {[%emt 0:07:26]} Rd8 {[%emt 0:09:51]} 23. Rd1 {[%emt 0:03:45]} Rxd1+ {[%emt 0:03:13]} 24. Qxd1 {[%emt 0:00:07]} Nf6 {[%emt 0:03:51]} 25. Qc2 {[%emt 0:03:30]} Nd5 {[%emt 0:04:15]} 26. Bd4 {[%emt 0:01:55]} Bf6 {[%emt 0:02:24]} 27. Qc6 {[%emt 0:03:56]} Qxc6 {[%emt 0:00:51]} 28. Nxc6 {[%emt 0:00:06]} Bxd4+ {[%emt 0:00:07]} 29. Nxd4 {[%emt 0:00:04]} Kf8 {[%emt 0:00:19]} 30. Kf2 {[%emt 0:00:40]} Ke7 {[%emt 0:01:10]} 31. Ke2 {[%emt 0:00:11]} Kd6 {[%emt 0:00:05]} 32. Kd3 {[%emt 0:00:42]} Kc5 {[%emt 0:02:30]} 33. Nb3+ {[%emt 0:02:05]} Kb5 {[%emt 0:02:13]} 34. Nd4+ {[%emt 0:00:14]} Kc5 {[%emt 0:01:35]} 35. Nb3+ {[%emt 0:00:06]} Kd6 {[%emt 0:03:28]} 36. Kc4 {[%emt 0:00:32]} Kc6 {[%emt 0:03:13]} 37. Nd4+ {[%emt 0:01:30]} Kb6 {[%emt 0:00:15]} 38. Nf3 {[%emt 0:01:18]} f6 {[%emt 0:01:37]} 39. Nd4 {[%emt 0:00:36]} Ne3+ {[%emt 0:00:04]} 40. Kxb4 {[%emt 0:00:00]} e5 {[%emt 0:00:00]} 41. fxe5 {[%emt 0:02:04]} fxe5 {[%emt 0:00:41]} 42. Nf3 {[%emt 0:00:56]} e4 {[%emt 0:03:24]} 43. Ng5 {[%emt 0:02:09]} Nf1 {[%emt 0:01:09]} 44. Nxe4 {[%emt 0:00:30]} Nxh2 {[%emt 0:00:04]} 45. Kc4 {[%emt 0:03:54]} h5 {[%emt 0:02:39]} 46. Kd5 {[%emt 0:15:39]} Nf1 {[%emt 0:01:11]} 47. Ke5 {[%emt 0:00:35]} Kb5 {[%emt 0:01:39]} 48. Kf4 {[%emt 0:03:18]} Kb4 {[%emt 0:00:44]} 49. Kg5 {[%emt 0:02:59]} Nxg3 {[%emt 0:00:25]} 50. Nxg3 {[%emt 0:00:04]} Kb3 {[%emt 0:00:02]} 51. Nxh5 {[%emt 0:00:07]} Kxb2 {[%emt 0:00:03]} 52. Nxg7 {[%emt 0:00:07]} 1/2-1/2

[Event "Polish Youth Ekstraliga 2022"]
[Site "Lublin"]
[Date "2022.07.03"]
[Round "9.18"]
[White "Walewska, Natalia"]
[Black "Bandyk, Joanna"]
[Result "0-1"]
[ECO "B93"]
[WhiteElo "1179"]
[BlackElo "1360"]
[Annotator "NA RC"]
[PlyCount "56"]
[EventDate "2022.06.24"]
[EventType "team-tourn"]
[EventCountry "POL"]
[SourceTitle "playchess.com"]
[Source "ChessBase"]
[SourceQuality "1"]
[TimeControl "40/5400+30:1800+30"]

1. e4 {[%emt 0:00:01]} c5 {[%emt 0:00:26]} 2. Nf3 {[%emt 0:00:05]} d6 {[%emt 0:00:07]} 3. d4 {[%emt 0:00:08]} cxd4 {[%emt 0:00:16]} 4. Nxd4 {[%emt 0:00:02]} Nf6 {[%emt 0:00:06]} 5. Nc3 {[%emt 0:00:12]} a6 {[%emt 0:00:06]} 6. f4 {[%emt 0:00:09]} e5 {[%emt 0:00:51]} 7. Nb3 {[%emt 0:00:08]} Qc7 {[%emt 0:05:46]} 8. Be2 {[%emt 0:07:48]} b5 {[%emt 0:02:18]} 9. a3 {[%emt 0:01:27]} Bb7 {[%emt 0:00:43]} 10. Bd3 {[%emt 0:03:31]} Be7 {[%emt 0:02:00]} 11. O-O {[%emt 0:01:14]} O-O {[%emt 0:01:50]} 12. Kh1 {[%emt 0:02:17]} Nbd7 {[%emt 0:02:59]} 13. Qf3 {[%emt 0:15:24]} Nc5 {[%emt 0:09:16]} 14. Nd2 {[%emt 0:04:01]} Rad8 {[%emt 0:02:18]} 15. Re1 {[%emt 0:18:00]} d5 {[%emt 0:05:47]} 16. f5 {[%emt 0:07:21]} dxe4 {[%emt 0:05:43]} 17. Bxe4 {[%emt 0:05:14]} Ncxe4 {[%emt 0:03:50]} 18. Ndxe4 {[%emt 0:01:13]} Rd4 {[%emt 0:10:13]} 19. Nxf6+ {[%emt 0:02:28]} Bxf6 {[%emt 0:00:08]} 20. Qe2 {[%emt 0:01:28]} Rh4 {[%emt 0:07:10]} 21. Qe3 {[%emt 0:04:54]} Rd8 {[%emt 0:03:24]} 22. Bd2 {[%emt 0:04:15]} e4 {[%emt 0:01:10]} 23. g3 {[%emt 0:02:42]} Bd4 {[%emt 0:02:00]} 24. Qe2 {[%emt 0:02:12]} e3+ {[%emt 0:00:13]} 25. Kg1 {[%emt 0:00:18]} Qxg3+ {[%emt 0:00:30]} 26. Kf1 {[%emt 0:00:56]} Rf4+ {[%emt 0:00:35]} 27. Qf3 {[%emt 0:00:35]} Qxf3+ {[%emt 0:00:07]} 28. Kg1 {[%emt 0:00:08]} Qg2# {[%emt 0:00:04]} 0-1

[Event "Polish Youth Ekstraliga 2022"]
[Site "Lublin"]
[Date "2022.07.03"]
[Round "9.19"]
[White "Niedbala, Bartlomiej"]
[Black "Poltorak, Sebastian"]
[Result "1-0"]
[ECO "B12"]
[WhiteElo "2384"]
[BlackElo "2322"]
[Annotator "TA"]
[PlyCount "55"]
[EventDate "2022.06.24"]
[EventType "team-tourn"]
[EventCountry "POL"]
[SourceTitle "playchess.com"]
[Source "ChessBase"]
[SourceQuality "1"]
[TimeControl "40/5400+30:1800+30"]

{[%evp 11,54,7,6,0,-2,-7,-7,-10,47,43,57,41,38,0,70,36,74,73,85,86,91,-18,0,-106,104,100,102,94,85,102,432,438,401,428,677,697,677,670,611,589,29994,29995,29996,29997,29999]} 1. e4 {[%emt 0:00:17]} c6 {[%emt 0:00:06]} 2. d4 d5 {[%emt 0:00:04]} 3. e5 {[%emt 0:00:08]} Bf5 {[%emt 0:00:05]} 4. h4 {[%emt 0:00:05]} h5 {[%emt 0:00:04]} 5. Bd3 {[%emt 0:00:11]} Bxd3 {[%emt 0:00:06]} 6. Qxd3 {[%emt 0:00:04]} e6 {[%emt 0:01:36]} 7. Bg5 {[%emt 0:00:07] B12: Caro-Kann: Advance Variation.} Qb6 {[%emt 0:00:10]} 8. Nd2 {[%emt 0:00:37] Active counter play!} c5 {[%emt 0:01:40]} 9. c4 {[%emt 0:01:57] The position is equal.} Ne7 {[%emt 0:05:06]} (9... Qxb2 $11 10. Rb1 Qxa2) 10. Ngf3 $14 {[%emt 0:10:39]} Nbc6 {[%emt 0:05:06]} 11. O-O {[%emt 0:09:25]} cxd4 {[%emt 0:03:21] [#]} 12. Rac1 $146 {[%emt 0:11:31]} ({Predecessor:} 12. a3 Qxb2 13. Rfc1 Qb6 14. Rab1 Qa6 15. Qb3 Rb8 16. Bxe7 Bxe7 17. cxd5 exd5 18. Qxd5 {½-½ (151) Balogh,C (2660)-Tari,A (2450) Germany 2015}) 12... Qa6 {[%emt 0:04:51]} ({Better is} 12... Qxb2 $11 13. Bxe7 Bxe7) 13. a3 {[%emt 0:09:04]} dxc4 {[%emt 0:06:11]} 14. Nxc4 {[%emt 0:00:39] Black must now prevent Nd6+.} Nf5 {[%emt 0:01:15] Inhibits Nd6+.} 15. Rfd1 {[%emt 0:08:12]} Qb5 {[%emt 0:07:09]} 16. Rc2 {[%emt 0:07:25]} (16. b4 $16) 16... Qd5 {[%emt 0:05:15]} 17. b4 {[%emt 0:07:51] [#] Inhibits Bc5.} (17. Qe2 $11) 17... Be7 $2 {[%emt 0:04:47]} (17... Bxb4 $1 $17 {[%cal Oe8g8][%mdl 512] ...0-0! is the strong threat.} 18. Qb3 (18. axb4 Nxb4 19. Qd2 Nxc2 $17) 18... Bc5 19. Qxb7 Rb8) 18. Bxe7 $1 $16 {[%emt 0:06:53]} Kxe7 {[%emt 0:00:08]} 19. Nd6 {[%emt 0:03:44] Against Rhc8} Nxd6 {[%emt 0:08:44] [#]} 20. Rc5 $1 {[%emt 0:00:01]} Nxe5 $2 {[%emt 0:17:52][%mdl 8192] This move loses the game for Black.} 21. Nxe5 $18 {[%emt 0:00:02]} Qe4 {[%emt 0:00:05] [#] Strongly threatening ...Qxd3.} 22. Rc7+ $1 {[%emt 0:04:39][%mdl 64] Skewer} Kd8 {[%emt 0:10:39]} (22... Kf6 $2 23. Nd7+ Kg6 24. Qg3+ Kh7 25. Qxd6 $18) (22... Kf8 $142) 23. Qxe4 {[%emt 0:01:45][%mdl 64] Deflection} Nxe4 {[%emt 0:00:08]} 24. Rxf7 {[%emt 0:00:03]} Ke8 {[%emt 0:02:06]} 25. Rxd4 {[%emt 0:01:26] Threatening mate with Rdd7.} Nc3 {[%emt 0:00:19]} 26. Rdd7 {[%emt 0:00:39] White mates.} Nd5 {[%emt 0:00:21]} 27. Nc4 {[%emt 0:00:23][%cal Rc4d6]} Rb8 {[%emt 0:00:09]} 28. Nd6# {[%emt 0:00:05] Weighted Error Value: White=0.20 (precise) /Black=0.85} 1-0